fUSD/lending_fUSD_20250213
["ID","MTS","AMOUNT","RATE_DAILY","PERIOD"]
[352929862,1739439059145,-510.22196296,0.00015336,2]
[352929863,1739439059155,-789.27,0.00015336,2]
[352929864,1739439059164,-2429.15,0.00015336,2]
[352929865,1739439059173,-500.0,0.00015336,2]
[352929866,1739439059183,-4837.04,0.00015336,2]
[352929867,1739439059192,-2782.04,0.00015336,2]
[352929868,1739439059201,-1199.55,0.00015336,2]
[352929869,1739439059210,-500.0,0.00015336,2]
[352929870,1739439059220,-500.0,0.00015336,2]
[352929871,1739439059229,-500.0,0.00015336,2]
[352929872,1739439059238,-12216.38,0.00015336,2]
[352929873,1739439059247,-1652.91,0.00015336,2]
[352929874,1739439059257,-500.0,0.00015336,2]
[352929875,1739439059267,-500.0,0.00015336,2]
[352929876,1739439059275,-1303.6,0.00015336,2]
[352929877,1739439059285,-6499.77,0.00015336,2]
[352929878,1739439059294,-500.0,0.00015336,2]
[352929879,1739439059303,-500.0,0.00015336,2]
[352929880,1739439059312,-500.0,0.00015336,2]
[352929881,1739439059322,-3778.35,0.00015336,2]
[352929882,1739439059331,-2112.17,0.00015336,2]
[352929883,1739439059340,-627.69,0.00015336,2]
[352929884,1739439059350,-2736.34,0.00015336,2]
[352929885,1739439059361,-500.0,0.00015336,2]
[352929886,1739439059371,-1813.14,0.00015336,2]
[352929887,1739439059380,-4547.53,0.00015336,2]
[352929888,1739439059389,-1611.72,0.00015336,2]
[352929889,1739439059399,-500.0,0.00015336,2]
[352929890,1739439059409,-938.62,0.00015336,2]
[352929891,1739439059418,-2680.72,0.00015336,2]
[352929892,1739439059427,-939.66,0.00015336,2]
[352929893,1739439059437,-3057.67,0.00015336,2]
[352929894,1739439059446,-500.0,0.00015336,2]
[352929895,1739439059459,-500.0,0.00015336,2]
[352929896,1739439059468,-500.0,0.00015336,2]
[352929897,1739439059477,-500.0,0.00015336,2]
[352929898,1739439059486,-500.0,0.00015336,2]
[352929899,1739439059495,-500.0,0.00015336,2]
[352929900,1739439059506,-3348.99,0.00015336,2]
[352929901,1739439059516,-656.04,0.00015336,2]
[352929902,1739439059525,-6509.41,0.00015336,2]
[352929903,1739439059535,-500.0,0.00015336,2]
[352929904,1739439059545,-500.0,0.00015336,2]
[352929905,1739439059554,-644.97,0.00015336,2]
[352929906,1739439059563,-2217.09,0.00015336,2]
[352929907,1739439059574,-500.0,0.00015336,2]
[352929908,1739439059583,-500.0,0.00015336,2]
[352929909,1739439059592,-500.0,0.00015336,2]
[352929910,1739439059601,-913.68,0.00015336,2]
[352929911,1739439059615,-500.0,0.00015336,2]
[352929912,1739439059624,-151.0,0.00015336,2]
[352929913,1739439059633,-500.0,0.00015336,2]
[352929914,1739439059643,-666.84,0.00015336,2]
[352929915,1739439059651,-2541.63,0.00015336,2]
[352929916,1739439059661,-3615.1,0.00015336,2]
[352929917,1739439059670,-274.58042911,0.00015336,2]
[352929918,1739439059679,-500.0,0.00015336,2]
[352929919,1739439059688,-500.0,0.00015336,2]
[352929920,1739439059698,-500.41557908,0.00015336,2]
[352929921,1739439059708,-336.0820788,0.00015336,2]
[352929922,1739439059719,-575.96,0.00015336,2]
[352929923,1739439059730,-500.0,0.00015336,2]
[352929924,1739439059740,-4044.09,0.00015336,2]
[352929925,1739439059749,-1343.49,0.00015336,2]
[352929926,1739439059759,-500.0,0.00015336,2]
[352929927,1739439059768,-1367.47,0.00015336,2]
[352929928,1739439059778,-500.0,0.00015336,2]
[352929929,1739439059788,-500.0,0.00015336,2]
[352929930,1739439059799,-500.0,0.00015336,2]
[352929931,1739439059809,-1860.01,0.00015336,2]
[352929932,1739439059820,-1726.68,0.00015336,2]
[352929933,1739439059830,-500.0,0.00015336,2]
[352929934,1739439059840,-2365.65,0.00015336,2]
[352929935,1739439059851,-500.0,0.00015336,2]
[352929936,1739439059862,-500.0,0.00015336,2]
[352929937,1739439059871,-6247.32,0.00015336,2]
[352929938,1739439059880,-500.0,0.00015336,2]
[352929939,1739439059889,-170.67363625,0.00015336,2]
[352929940,1739439059899,-1416.32,0.00015336,2]
[352929941,1739439059909,-3390.97,0.00015336,2]
[352929942,1739439059920,-671.67,0.00015336,2]
[352929943,1739439059930,-500.0,0.00015336,2]
[352929944,1739439059941,-500.0,0.00015336,2]
[352929945,1739439059951,-500.0,0.00015336,2]
[352929946,1739439059963,-4101.99,0.00015336,2]
[352929947,1739439059973,-2374.9,0.00015336,2]
[352929948,1739439059985,-500.0,0.00015336,2]
[352929949,1739439059995,-3885.5,0.00015336,2]
[352929950,1739439060005,-150.0,0.00015336,2]
[352929951,1739439060015,-500.0,0.00015336,2]
[352929952,1739439060024,-702.86,0.00015336,2]
[352929953,1739439060034,-500.0,0.00015336,2]
[352929954,1739439060044,-2799.22,0.00015336,2]
[352929955,1739439060054,-2785.59,0.00015336,2]
[352929956,1739439060064,-500.0,0.00015336,2]
[352929957,1739439060073,-2747.58,0.00015336,2]
[352929958,1739439060083,-510.23339836,0.00015336,2]
[352929959,1739439060092,-411.67531223,0.00015336,2]
[352929960,1739439060101,-370.07388685,0.00015336,2]
[352929961,1739439060112,-3382.34,0.00015336,2]
[352929962,1739439060121,-2450.24,0.00015336,2]
[352929963,1739439060130,-639.94,0.00015336,2]
[352929964,1739439060139,-1465.75,0.00015336,2]
[352929965,1739439060148,-198.70832928,0.00015336,2]
[352929966,1739439060319,-500.0,0.00015336,2]
[352929967,1739439060328,-500.0,0.00015336,2]
[352929968,1739439060338,-733.35,0.00015336,2]
[352929969,1739439060347,-510.35991514,0.00015336,2]
[352929970,1739439060356,-500.0,0.00015336,2]
[352929971,1739439060368,-528.75,0.00015336,2]
[352929972,1739439060378,-2896.84,0.00015336,2]
[352929973,1739439060387,-631.96,0.00015336,2]
[352929974,1739439060396,-6890.1,0.00015336,2]
[352929975,1739439060406,-500.0,0.00015336,2]
[352929976,1739439060415,-3336.34,0.00015336,2]
[352929977,1739439060424,-2906.54,0.00015336,2]
[352929978,1739439060433,-500.0,0.00015336,2]
[352929979,1739439060443,-150.0,0.00015337,2]
[352929980,1739439060454,-150.0,0.00015341,2]
[352929981,1739439060465,-150.0,0.00015348,2]
[352929982,1739439060474,-150.0,0.00015355,2]
[352929983,1739439060483,-150.0,0.00015356,2]
[352929984,1739439060493,-150.0,0.00015358,2]
[352929985,1739439060503,-150.0,0.00015359,2]
[352929986,1739439060513,-150.0,0.00015362,2]
[352929987,1739439060524,-150.0,0.00015365,2]
[352929988,1739439060534,-150.0,0.00015368,2]
[352929989,1739439060545,-150.0,0.0001537,2]
[352929990,1739439060555,-150.0,0.00015371,2]
[352929991,1739439060565,-150.0,0.00015375,2]
[352929992,1739439060575,-150.0,0.00015376,2]
[352929993,1739439060586,-514.7,0.00015379,2]
[352929994,1739439060595,-514.7,0.00015379,2]
[352929995,1739439060605,-514.7,0.00015379,2]
[352929996,1739439060615,-514.7,0.00015379,2]
[352929997,1739439060624,-514.7,0.00015379,2]
[352929998,1739439060633,-514.7,0.00015379,2]
[352929999,1739439060643,-514.7,0.00015379,2]
[352930000,1739439060653,-514.7,0.00015379,2]
[352930001,1739439060664,-514.7,0.00015379,2]
[352930002,1739439060674,-514.7,0.00015379,2]
[352930003,1739439060683,-514.7,0.00015379,2]
[352930004,1739439060692,-514.7,0.00015379,2]
[352930005,1739439060702,-514.7,0.00015379,2]
[352930006,1739439060712,-169.337899,0.00015379,2]
[352930007,1739439060723,-500.0,0.00015379,2]
[352930008,1739439060733,-500.0,0.00015379,2]
[352930009,1739439060742,-500.0,0.00015379,2]
[352930010,1739439060751,-500.0,0.00015379,2]
[352930011,1739439060762,-500.0,0.00015379,2]
[352930012,1739439060772,-500.0,0.00015379,2]
[352930013,1739439060782,-500.0,0.00015379,2]
[352930014,1739439060792,-500.0,0.00015379,2]
[352930015,1739439060802,-644.41,0.00015379,2]
[352930016,1739439060811,-1232.06,0.00015379,2]
[352930017,1739439060821,-1232.06,0.00015379,2]
[352930018,1739439060830,-1232.06,0.00015379,2]
[352930019,1739439060840,-1232.06,0.00015379,2]
[352930020,1739439060849,-1232.06,0.00015379,2]
[352930021,1739439060858,-1232.06,0.00015379,2]
[352930022,1739439060871,-1232.06,0.00015379,2]
[352930023,1739439060880,-1232.06,0.00015379,2]
[352930024,1739439060889,-1232.06,0.00015379,2]
[352930025,1739439060899,-1232.06,0.00015379,2]
[352930026,1739439060910,-1232.06,0.00015379,2]
[352930027,1739439060919,-1232.06,0.00015379,2]
[352930028,1739439060928,-574.6,0.00015379,2]
[352930029,1739439060937,-574.6,0.00015379,2]
[352930030,1739439060947,-574.6,0.00015379,2]
[352930031,1739439060956,-574.6,0.00015379,2]
[352930032,1739439060964,-574.6,0.00015379,2]
[352930033,1739439060974,-574.6,0.00015379,2]
[352930034,1739439060983,-574.6,0.00015379,2]
[352930035,1739439060992,-574.6,0.00015379,2]
[352930036,1739439061001,-574.6,0.00015379,2]
[352930037,1739439061010,-574.6,0.00015379,2]
[352930038,1739439061019,-574.6,0.00015379,2]
[352930039,1739439061029,-574.6,0.00015379,2]
[352930040,1739439061038,-574.6,0.00015379,2]
[352930041,1739439061049,-150.0,0.00015381,2]
[352930042,1739439061059,-150.0,0.00015381,2]
[352930043,1739439061069,-150.0,0.00015383,2]
[352930044,1739439061079,-150.0,0.00015385,2]
[352930045,1739439061089,-264.4511979,0.00015389,2]
[352930046,1739439061098,-1833.1812372,0.00015389,2]
[352930047,1739439061108,-333.16589006,0.00015389,2]
[352930048,1739439061119,-453.8329906,0.00015389,2]
[352930049,1739439061130,-150.0,0.00015391,2]
[352930050,1739439061139,-150.0,0.00015392,2]
[352930051,1739439061148,-150.0,0.00015392,2]
[352930052,1739439061157,-150.0,0.00015392,2]
[352930053,1739439061166,-150.0,0.00015397,2]
[352930054,1739439061176,-242.72,0.00015397,2]
[352930055,1739439061186,-150.0,0.00015397,2]
[352930056,1739439061196,-775.49,0.00015397,2]
[352930057,1739439061205,-986.09,0.00015397,2]
[352930058,1739439061215,-287.28,0.00015397,2]
[352930059,1739439061224,-986.09,0.00015397,2]
[352930060,1739439061234,-986.09,0.00015397,2]
[352930061,1739439061245,-743.37,0.00015397,2]
[352930062,1739439061254,-1232.06,0.00015398,2]
[352930063,1739439061263,-514.7,0.00015399,2]
[352930064,1739439061272,-514.7,0.00015399,2]
[352930065,1739439061282,-514.7,0.00015399,2]
[352930066,1739439061291,-514.7,0.00015399,2]
[352930067,1739439061301,-514.7,0.00015399,2]
[352930068,1739439061310,-514.7,0.00015399,2]
[352930069,1739439061319,-514.7,0.00015399,2]
[352930070,1739439061329,-514.85,0.00015399,2]
[352930071,1739439061338,-500.0,0.00015399,2]
[352930072,1739439061347,-500.0,0.00015399,2]
[352930073,1739439061356,-500.0,0.00015399,2]
[352930074,1739439061367,-500.0,0.00015399,2]
[352930075,1739439061376,-510.7887144,0.00015399,2]
[352930076,1739439061385,-1232.06,0.00015399,2]
[352930077,1739439061394,-1232.06,0.00015399,2]
[352930078,1739439061404,-1232.06,0.00015399,2]
[352930079,1739439061414,-1232.06,0.00015399,2]
[352930080,1739439061423,-1232.06,0.00015399,2]
[352930081,1739439061432,-1232.06,0.00015399,2]
[352930082,1739439061441,-1232.06,0.00015399,2]
[352930083,1739439061450,-1232.26,0.00015399,2]
[352930084,1739439061466,-2811.91913,0.00015399,2]
[352930085,1739439061476,-500.0,0.00015399,2]
[352930086,1739439061485,-500.0,0.00015399,2]
[352930087,1739439061494,-500.0,0.00015399,2]
[352930088,1739439061505,-500.0,0.00015399,2]
[352930089,1739439061517,-500.0,0.00015399,2]
[352930090,1739439061527,-500.0,0.00015399,2]
[352930091,1739439061538,-574.6,0.00015399,2]
[352930092,1739439061548,-574.6,0.00015399,2]
[352930093,1739439061558,-574.6,0.00015399,2]
[352930094,1739439061567,-574.6,0.00015399,2]
[352930095,1739439061577,-574.6,0.00015399,2]
[352930096,1739439061586,-574.6,0.00015399,2]
[352930097,1739439061597,-574.6,0.00015399,2]
[352930098,1739439061607,-574.72105894,0.00015399,2]
[352930099,1739439061618,-20989.54586393,0.000154,3]
[352930100,1739439061628,-269141.69095754,0.000154,5]
[352930101,1739439062656,-508.47,0.00015198,2]
[352930102,1739439062666,-500.0,0.00015199,2]
[352930103,1739439062675,-6142.78,0.000154,5]
[352930104,1739439062686,-1380.48868327,0.000154,5]
[352930105,1739439063033,-311.50242225,0.000154,5]
[352930106,1739439063044,-331.81911004,0.000154,5]
[352930107,1739439063056,-965.65000005,0.000154,5]
[352930108,1739439063072,-9645.95338655,0.000154,5]
[352930112,1739439406260,2500.0,8.851e-05,2]
[352930113,1739439461118,4555.9297,8.973e-05,2]
[352930115,1739439482790,5000.0,8.973e-05,2]
[352930116,1739439691153,259.3,0.00010137,2]
[352930120,1739439780691,10000.0,0.00020787,60]
[352930121,1739439844903,5000.0,0.00020788,60]
[352930122,1739439936844,1070.0,8.973e-05,2]
[352930123,1739439950106,-559.20399022,0.00012175,2]
[352930124,1739439991081,-322.07600978,0.00012175,2]
[352930125,1739439991104,-63.2292327,0.00012783,2]
[352930126,1739440028157,-86.7707673,0.00012783,2]
[352930127,1739440028178,-250.0,0.00013369,2]
[352930128,1739440028203,-150.0,0.00013392,2]
[352930129,1739440028225,-150.0,0.00013392,2]
[352930130,1739440028248,-1000.0,0.00013895,2]
[352930131,1739440028271,-81.97434369,0.00014006,2]
[352930132,1739440029075,-420.20565631,0.00014006,2]
[352930133,1739440029096,-1601.97659734,0.00014006,2]
[352930134,1739440029118,-300.0,0.000141,5]
[352930135,1739440029139,-600.0,0.000142,5]
[352930136,1739440029160,-1000.0,0.000143,5]
[352930137,1739440029181,-172.06,0.00014361,2]
[352930138,1739440029203,-1300.0,0.000144,5]
[352930139,1739440029226,-480.55,0.00014403,2]
[352930140,1739440029247,-881.28,0.00014439,2]
[352930141,1739440029267,-329.37,0.00014453,2]
[352930142,1739440029288,-250.0,0.00014501,2]
[352930143,1739440029310,-300.0,0.00014511,2]
[352930144,1739440029331,-1019.40721704,0.0001452,3]
[352930145,1739440029354,-5000.0,0.00015,2]
[352930146,1739440029390,-4.41481668,0.00015,3]
[352930147,1739440049077,-823.67413882,0.00014026,2]
[352930151,1739440148166,-1960.0,0.00014026,2]
[352930152,1739440149103,-116.92586118,0.00014026,2]
[352930153,1739440149125,-150.0,0.00014263,2]
[352930154,1739440149147,-1700.0,0.000145,5]
[352930155,1739440149169,-300.0,0.000146,5]
[352930156,1739440149190,-207.08444618,0.000147,5]
[352930157,1739440166130,-92.91555382,0.000147,5]
[352930158,1739440166154,-203.04444618,0.000148,5]
[352930159,1739440172085,-96.95555382,0.000148,5]
[352930160,1739440214327,332.98024618,0.00013,2]
[352930162,1739440231988,-217.01975382,0.00013,2]
[352930163,1739440231999,-300.0,0.000149,5]
[352930164,1739440232009,-150.0,0.00014949,2]
[352930165,1739440232019,-300.0,0.00014999,2]
[352930166,1739440232030,-60329.52368741,0.00015,3]
[352930167,1739440232040,-600.0,0.00015,2]
[352930168,1739440232049,-159.81199429,0.00015097,2]
[352930169,1739440232058,-1000.0,0.0001515,2]
[352930170,1739440232067,-1000.0,0.00015161,2]
[352930171,1739440232076,-170.3481224,0.00015173,2]
[352930172,1739440232086,-431.95362761,0.00015175,2]
[352930173,1739440232095,-1047.0,0.00015195,2]
[352930174,1739440232105,-2342.44,0.00015195,2]
[352930175,1739440232115,-2112.47,0.00015195,2]
[352930176,1739440232124,-651.86,0.00015196,2]
[352930177,1739440232134,-857.11,0.00015196,2]
[352930178,1739440232144,-502.74116395,0.00015196,2]
[352930179,1739440232154,-500.0,0.00015196,2]
[352930180,1739440232165,-500.0,0.00015196,2]
[352930181,1739440232175,-1571.2,0.00015196,2]
[352930182,1739440232185,-500.0,0.00015196,2]
[352930183,1739440232196,-500.0,0.00015196,2]
[352930184,1739440232205,-500.0,0.00015196,2]
[352930185,1739440232215,-500.0,0.00015196,2]
[352930186,1739440232224,-500.0,0.00015196,2]
[352930187,1739440232235,-742.1,0.00015196,2]
[352930188,1739440232245,-500.0,0.00015196,2]
[352930189,1739440232254,-500.0,0.00015196,2]
[352930190,1739440232264,-1409.19,0.00015196,2]
[352930191,1739440232274,-500.0,0.00015196,2]
[352930192,1739440232283,-500.0,0.00015196,2]
[352930193,1739440232293,-500.0,0.00015196,2]
[352930194,1739440232302,-2051.96,0.00015196,2]
[352930195,1739440232312,-500.0,0.00015196,2]
[352930196,1739440232321,-979.19,0.00015196,2]
[352930197,1739440232330,-4611.4,0.00015196,2]
[352930198,1739440232340,-660.94,0.00015196,2]
[352930199,1739440232349,-500.0,0.00015196,2]
[352930200,1739440232358,-3963.42,0.00015196,2]
[352930201,1739440232367,-520.31,0.00015196,2]
[352930202,1739440232377,-500.0,0.00015196,2]
[352930203,1739440232386,-1086.45,0.00015196,2]
[352930204,1739440232396,-500.0,0.00015196,2]
[352930205,1739440232406,-2314.78,0.00015196,2]
[352930206,1739440232416,-2677.55,0.00015196,2]
[352930207,1739440232425,-500.0,0.00015196,2]
[352930208,1739440232435,-500.0,0.00015196,2]
[352930209,1739440232444,-3219.76,0.00015196,2]
[352930210,1739440232453,-500.0,0.00015196,2]
[352930211,1739440232463,-500.0,0.00015196,2]
[352930212,1739440232472,-500.0,0.00015196,2]
[352930213,1739440232482,-1071.66,0.00015196,2]
[352930214,1739440232492,-500.0,0.00015196,2]
[352930215,1739440232502,-769.89,0.00015196,2]
[352930216,1739440232511,-500.0,0.00015196,2]
[352930221,1739440232746,-2875.03,0.00015196,2]
[352930223,1739440232756,-500.0,0.00015196,2]
[352930224,1739440232766,-1915.71,0.00015196,2]
[352930226,1739440232776,-1148.46,0.00015196,2]
[352930228,1739440232786,-500.0,0.00015196,2]
[352930229,1739440232795,-500.0,0.00015196,2]
[352930231,1739440232804,-1106.09,0.00015196,2]
[352930233,1739440232814,-500.0,0.00015196,2]
[352930235,1739440232824,-1130.88564114,0.00015196,2]
[352930236,1739440232837,-1519.93435886,0.00015196,2]
[352930237,1739440232847,-500.0,0.00015196,2]
[352930238,1739440232859,-500.0,0.00015196,2]
[352930239,1739440232868,-1767.94,0.00015196,2]
[352930240,1739440232878,-500.0,0.00015196,2]
[352930241,1739440232887,-500.0,0.00015196,2]
[352930242,1739440232898,-500.0,0.00015196,2]
[352930243,1739440232908,-1997.99,0.00015196,2]
[352930244,1739440232917,-500.0,0.00015196,2]
[352930245,1739440232930,-2979.93,0.00015196,2]
[352930246,1739440232939,-500.0,0.00015196,2]
[352930247,1739440232948,-3664.86,0.00015196,2]
[352930248,1739440232958,-500.0,0.00015196,2]
[352930249,1739440232967,-708.32,0.00015196,2]
[352930250,1739440232977,-3734.91,0.00015196,2]
[352930252,1739440232986,-500.0,0.00015196,2]
[352930253,1739440232995,-629.68,0.00015196,2]
[352930255,1739440233004,-500.0,0.00015196,2]
[352930257,1739440233013,-500.0,0.00015196,2]
[352930259,1739440233024,-500.0,0.00015196,2]
[352930261,1739440233035,-2556.52,0.00015196,2]
[352930263,1739440233044,-1248.22,0.00015196,2]
[352930265,1739440233054,-500.0,0.00015196,2]
[352930268,1739440233064,-3133.29,0.00015196,2]
[352930270,1739440233074,-500.0,0.00015196,2]
[352930271,1739440233083,-3892.45,0.00015196,2]
[352930273,1739440233092,-500.0,0.00015196,2]
[352930275,1739440233102,-1559.7,0.00015196,2]
[352930277,1739440233113,-2404.56,0.00015196,2]
[352930279,1739440233123,-4143.27,0.00015196,2]
[352930281,1739440233132,-10611.05,0.00015196,2]
[352930283,1739440233142,-4893.73,0.00015196,2]
[352930285,1739440233152,-500.0,0.00015196,2]
[352930287,1739440233161,-2471.18,0.00015196,2]
[352930289,1739440233171,-500.0,0.00015196,2]
[352930291,1739440233180,-4499.37,0.00015196,2]
[352930293,1739440233190,-500.0,0.00015196,2]
[352930295,1739440233201,-2174.87,0.00015196,2]
[352930297,1739440233210,-5856.96964608,0.00015196,2]
[352930303,1739440233252,-2095.55035392,0.00015196,2]
[352930304,1739440233262,-3718.79,0.00015196,2]
[352930307,1739440233272,-500.0,0.00015196,2]
[352930309,1739440233282,-500.0,0.00015196,2]
[352930311,1739440233292,-2704.0,0.00015196,2]
[352930313,1739440233301,-508.55118645,0.00015196,2]
[352930315,1739440233310,-1410.34127684,0.00015196,2]
[352930317,1739440233321,-1024.56,0.00015196,2]
[352930319,1739440233338,-606.55715538,0.00015196,2]
[352930322,1739440233355,-466.42930039,0.00015196,2]
[352930326,1739440233382,-836.88226739,0.00015196,2]
[352930328,1739440233394,-516.1,0.00015196,2]
[352930330,1739440233404,-507.00676623,0.00015196,2]
[352930332,1739440233414,-500.0,0.00015196,2]
[352930334,1739440233423,-1540.71405313,0.00015196,2]
[352930337,1739440233445,-316.27983904,0.00015196,2]
[352930467,1739440237951,-693.43710831,0.00015196,2]
[352930468,1739440237966,-1241.59899952,0.00015196,2]
[352930469,1739440237976,-500.0,0.00015196,2]
[352930470,1739440237986,-500.0,0.00015196,2]
[352930471,1739440237995,-500.0,0.00015196,2]
[352930472,1739440238005,-592.7,0.00015196,2]
[352930473,1739440238014,-156.24343042,0.00015196,2]
[352930480,1739440238319,-345.78168765,0.00015196,2]
[352930481,1739440238329,-500.0,0.00015196,2]
[352930482,1739440238340,-500.0,0.00015196,2]
[352930483,1739440238351,-517.51730392,0.00015196,2]
[352930484,1739440238363,-3136.91269608,0.00015196,2]
[352930485,1739440238372,-1447.81,0.00015196,2]
[352930486,1739440238381,-500.0,0.00015196,2]
[352930487,1739440238390,-3084.28,0.00015196,2]
[352930488,1739440238399,-1883.26,0.00015196,2]
[352930489,1739440238409,-500.0,0.00015196,2]
[352930490,1739440238418,-4236.61,0.00015196,2]
[352930491,1739440238427,-500.0,0.00015196,2]
[352930492,1739440238436,-448.83044818,0.00015196,2]
[352930493,1739440238461,-510.0000005,0.00015196,2]
[352930494,1739440238500,-902.48955533,0.00015195,2]
[352930495,1739440238511,-535.39850091,0.00015195,2]
[352930496,1739440238522,-375.48194376,0.00015195,2]
[352930497,1739440238543,-124.51805624,0.00015196,2]
[352930498,1739440238555,-801.33149508,0.00015196,2]
[352930499,1739440238564,-308.43462745,0.00015196,2]
[352930500,1739440240110,-191.56537255,0.00015196,2]
[352930501,1739440240121,-5630.77,0.00015196,2]
[352930502,1739440240132,-1026.36,0.00015196,2]
[352930503,1739440240143,-4856.48,0.00015196,2]
[352930504,1739440240153,-500.0,0.00015196,2]
[352930505,1739440240162,-500.0,0.00015196,2]
[352930506,1739440240172,-3356.76,0.00015196,2]
[352930507,1739440240181,-3413.39,0.00015196,2]
[352930508,1739440240190,-280.52890879,0.00015196,2]
[352930509,1739440240199,-500.0,0.00015196,2]
[352930510,1739440240209,-500.0,0.00015196,2]
[352930511,1739440240218,-500.0,0.00015196,2]
[352930512,1739440240227,-5388.07,0.00015196,2]
[352930513,1739440240236,-569.77,0.00015196,2]
[352930514,1739440240246,-500.0,0.00015196,2]
[352930515,1739440240255,-500.0,0.00015196,2]
[352930516,1739440240265,-3419.55,0.00015196,2]
[352930517,1739440240273,-500.0,0.00015196,2]
[352930518,1739440240283,-1195.78,0.00015196,2]
[352930519,1739440240292,-500.0,0.00015196,2]
[352930520,1739440240301,-500.0,0.00015196,2]
[352930521,1739440240310,-1746.51,0.00015196,2]
[352930522,1739440240320,-3490.09,0.00015196,2]
[352930523,1739440240329,-2481.24,0.00015196,2]
[352930524,1739440240338,-500.0,0.00015196,2]
[352930525,1739440240347,-494.51123553,0.00015196,2]
[352930526,1739440240356,-500.0,0.00015196,2]
[352930527,1739440240366,-500.0,0.00015196,2]
[352930528,1739440240375,-413.89625144,0.00015196,2]
[352930529,1739440240384,-500.0,0.00015196,2]
[352930530,1739440240393,-500.0,0.00015196,2]
[352930531,1739440240403,-4737.67,0.00015196,2]
[352930532,1739440240413,-504.30602755,0.00015196,2]
[352930533,1739440240423,-500.0,0.00015196,2]
[352930534,1739440240434,-500.0,0.00015196,2]
[352930535,1739440240444,-1499.48,0.00015196,2]
[352930536,1739440240456,-500.0,0.00015196,2]
[352930537,1739440240466,-500.0,0.00015196,2]
[352930538,1739440240476,-500.0,0.00015196,2]
[352930539,1739440240485,-2518.9,0.00015196,2]
[352930540,1739440240495,-500.0,0.00015196,2]
[352930541,1739440240505,-500.0,0.00015196,2]
[352930542,1739440240515,-500.0,0.00015196,2]
[352930543,1739440240524,-4140.73,0.00015196,2]
[352930544,1739440240534,-500.0,0.00015196,2]
[352930545,1739440240544,-500.0,0.00015196,2]
[352930546,1739440240554,-500.0,0.00015196,2]
[352930547,1739440240563,-3216.62,0.00015196,2]
[352930548,1739440240574,-500.0,0.00015196,2]
[352930549,1739440240584,-1669.85,0.00015196,2]
[352930550,1739440240595,-500.0,0.00015196,2]
[352930551,1739440240604,-500.0,0.00015196,2]
[352930552,1739440240613,-1128.62,0.00015196,2]
[352930553,1739440240623,-1350.47,0.00015196,2]
[352930554,1739440240632,-500.0,0.00015196,2]
[352930555,1739440240642,-497.99,0.00015197,2]
[352930556,1739440240651,-46318.27238816,0.00015197,2]
[352930557,1739440240664,-36792.60023359,0.00015197,2]
[352930559,1739440240674,-175.66399876,0.00015197,2]
[352930560,1739440240684,-554.99,0.00015197,2]
[352930561,1739440240695,-869.08,0.00015197,2]
[352930562,1739440240706,-531.5,0.00015197,2]
[352930563,1739440240716,-500.0,0.00015197,2]
[352930564,1739440240726,-500.0,0.00015197,2]
[352930565,1739440240736,-500.0,0.00015197,2]